fUST/lending_fUST_20260407
["ID","MTS","AMOUNT","RATE_DAILY","PERIOD"]
[419958396,1775555432041,-300.0,0.00013972,2]
[419958397,1775555432051,-2.46872828,0.00013972,2]
[419958406,1775555438061,-297.53127172,0.00013972,2]
[419958407,1775555438072,-300.0,0.00013972,2]
[419958408,1775555438083,-300.0,0.00013972,2]
[419958409,1775555438092,-44.2866435,0.00013972,2]
[419958410,1775555438104,-255.7133565,0.00013972,2]
[419958411,1775555438114,-300.0,0.00013972,2]
[419958412,1775555438124,-300.0,0.00013972,2]
[419958413,1775555438134,-300.0,0.00013972,2]
[419958414,1775555438144,-300.0,0.00013972,2]
[419958415,1775555438154,-300.0,0.00013972,2]
[419958416,1775555438164,-300.0,0.00013972,2]
[419958417,1775555438174,-420.0,0.00014213,2]
[419958418,1775555438185,-420.0,0.00014213,2]
[419958419,1775555438195,-600.0,0.0001425,2]
[419958420,1775555438204,-300.0,0.00014689,2]
[419958421,1775555438214,-720.0,0.00015675,2]
[419958422,1775555438224,-1187.0,0.00017,2]
[419958423,1775555438235,-864.0,0.00017243,2]
[419958424,1775555438244,-175.938496,0.00017856,2]
[419958425,1775555438255,-155.327,0.00017998,2]
[419958426,1775555438264,-500.0,0.00017999,2]
[419958427,1775555438275,-500.0,0.00017999,2]
[419958428,1775555438285,-500.0,0.00017999,2]
[419958429,1775555438295,-303.49492406,0.00017999,2]
[419958430,1775555438304,-500.0,0.00017999,2]
[419958431,1775555438314,-500.0,0.00017999,2]
[419958432,1775555438324,-500.0,0.00017999,2]
[419958433,1775555438334,-209.39720103,0.00017999,2]
[419958434,1775555438344,-500.0,0.00017999,2]
[419958435,1775555438355,-500.0,0.00017999,2]
[419958436,1775555438366,-500.0,0.00017999,2]
[419958437,1775555438376,-500.0,0.00017999,2]
[419958438,1775555438387,-500.0,0.00017999,2]
[419958439,1775555438396,-500.0,0.00017999,2]
[419958440,1775555438406,-500.0,0.00017999,2]
[419958441,1775555438416,-500.0,0.00017999,2]
[419958442,1775555438425,-274.98572415,0.00017999,2]
[419958443,1775555438435,-500.0,0.00017999,2]
[419958444,1775555438444,-500.0,0.00017999,2]
[419958445,1775555438454,-501.92628417,0.00017999,2]
[419958446,1775555438465,-500.0,0.00017999,2]
[419958447,1775555438475,-500.0,0.00017999,2]
[419958448,1775555438486,-497.35500118,0.00017999,2]
[419958449,1775555438499,-500.0,0.00017999,2]
[419958450,1775555438510,-500.0,0.00017999,2]
[419958451,1775555438523,-500.0,0.00017999,2]
[419958452,1775555438533,-500.0,0.00017999,2]
[419958453,1775555438544,-500.0,0.00017999,2]
[419958454,1775555438554,-500.0,0.00017999,2]
[419958455,1775555438566,-500.0,0.00017999,2]
[419958456,1775555438576,-500.0,0.00017999,2]
[419958457,1775555438587,-500.0,0.00017999,2]
[419958458,1775555438597,-500.0,0.00017999,2]
[419958459,1775555438607,-500.0,0.00017999,2]
[419958460,1775555438617,-500.0,0.00017999,2]
[419958461,1775555438627,-500.0,0.00017999,2]
[419958462,1775555438638,-500.0,0.00017999,2]
[419958463,1775555438648,-500.0,0.00017999,2]
[419958464,1775555438659,-500.0,0.00017999,2]
[419958465,1775555438669,-436.01121636,0.00017999,2]
[419958466,1775555438679,-448.35098607,0.00017999,2]
[419958467,1775555438689,-500.0,0.00017999,2]
[419958468,1775555438699,-332.49229946,0.00017999,2]
[419958469,1775555438710,-500.0,0.00017999,2]
[419958470,1775555438720,-500.0,0.00017999,2]
[419958471,1775555438730,-607.2176005,0.00017999,2]
[419958472,1775555438741,-500.0,0.00017999,2]
[419958473,1775555438751,-500.0,0.00017999,2]
[419958474,1775555438761,-500.0,0.00017999,2]
[419958475,1775555438771,-500.0,0.00017999,2]
[419958476,1775555438781,-500.0,0.00017999,2]
[419958477,1775555438791,-500.0,0.00017999,2]
[419958478,1775555438801,-500.0,0.00017999,2]
[419958479,1775555438811,-500.0,0.00017999,2]
[419958480,1775555438821,-500.0,0.00017999,2]
[419958481,1775555438832,-10199.37218351,0.00018,2]
[419958482,1775555438842,-5229.82849659,0.00018,2]
[419958483,1775555438855,-6757.54466589,0.00018,2]
[419958484,1775555438871,-4353.49752987,0.00018,2]
[419958485,1775555438881,-1000.0,0.00018,18]
[419958486,1775555438891,-302.51262048,0.00018486,2]
[419958487,1775555438901,-302.51262045,0.00018511,2]
[419958488,1775555438911,-302.51262045,0.00018537,2]
[419958489,1775555438921,-302.51262045,0.00018562,2]
[419958490,1775555438931,-500.0,0.00018573,2]
[419958491,1775555438940,-151.0,0.00018585,2]
[419958492,1775555438950,-179.109756,0.00018585,2]
[419958493,1775555438959,-179.109756,0.00018585,2]
[419958494,1775555438969,-179.109756,0.00018585,2]
[419958495,1775555438979,-179.109756,0.00018585,2]
[419958496,1775555438989,-381.23157775,0.00018585,2]
[419958497,1775555438999,-300.17414537,0.00018585,2]
[419958498,1775555439009,-500.0,0.00018585,2]
[419958499,1775555439020,-500.0,0.00018585,2]
[419958500,1775555439030,-500.0,0.00018585,2]
[419958501,1775555439039,-500.0,0.00018585,2]
[419958502,1775555439048,-500.0,0.00018585,2]
[419958503,1775555439058,-500.0,0.00018585,2]
[419958504,1775555439068,-500.0,0.00018585,2]
[419958505,1775555439078,-500.0,0.00018585,2]
[419958506,1775555439087,-500.0,0.00018585,2]
[419958507,1775555439097,-500.0,0.00018585,2]
[419958508,1775555439107,-571.41409403,0.00018585,2]
[419958509,1775555439117,-500.0,0.00018585,2]
[419958510,1775555439126,-500.0,0.00018585,2]
[419958511,1775555439136,-500.0,0.00018585,2]
[419958512,1775555439145,-500.0,0.00018585,2]
[419958513,1775555439156,-500.0,0.00018585,2]
[419958514,1775555439165,-500.0,0.00018585,2]
[419958515,1775555439175,-500.0,0.00018585,2]
[419958516,1775555439185,-500.0,0.00018585,2]
[419958517,1775555439194,-571.96942378,0.00018585,2]
[419958518,1775555439204,-500.0,0.00018585,2]
[419958519,1775555439213,-500.0,0.00018585,2]
[419958520,1775555439222,-500.0,0.00018585,2]
[419958521,1775555439232,-500.0,0.00018585,2]
[419958522,1775555439241,-500.0,0.00018585,2]
[419958523,1775555439250,-500.0,0.00018585,2]
[419958524,1775555439260,-500.0,0.00018585,2]
[419958525,1775555439270,-326.08297809,0.00018586,2]
[419958526,1775555439280,-302.51262045,0.00018587,2]
[419958527,1775555439290,-151.0,0.00018587,2]
[419958528,1775555439299,-179.109756,0.00018587,2]
[419958529,1775555439309,-179.109756,0.00018587,2]
[419958530,1775555439319,-179.109756,0.00018587,2]
[419958531,1775555439328,-179.109756,0.00018587,2]
[419958532,1775555439338,-75536.42017451,0.00018587,2]
[419958606,1775555440952,-500.0,0.00018585,2]
[419958608,1775555440962,-157.01944389,0.00018587,2]
[419958609,1775555441008,-6950.0,0.00018587,2]
[419958610,1775555441020,-1019.05201729,0.00018587,2]
[419958925,1775555446003,-45966.56643804,0.00018587,2]
[419958926,1775555446112,-72058.87929682,0.00018587,2]
[419958927,1775555446166,-23905.76277566,0.00018587,2]
[419958928,1775555446179,-276.5150003,0.00018587,2]
[419958960,1775555450020,-1179.67946753,0.00018401,2]
[419958961,1775555450032,-3256.23330091,0.00018401,2]
[419958962,1775555450126,-564.08723156,0.00018401,2]
[419958963,1775555450137,-4788.41276681,0.00018587,2]
[419958964,1775555450181,-468.942,0.00018587,2]
[419958965,1775555450235,-8000.0,0.00018587,2]
[419958982,1775555777429,222.05539227,2.7e-07,7]
[419958983,1775555777529,222.05539227,2.7e-07,7]
[419958984,1775555777642,222.05539227,2.7e-07,7]
[419958985,1775555777741,222.05539227,2.7e-07,7]
[419958986,1775555777851,222.05539227,2.7e-07,7]
[419958987,1775555777954,222.05539227,2.7e-07,7]
[419959058,1775556616668,674.01915703,0.0001,2]
[419959076,1775556632007,-4045.59544036,0.00012539,2]
[419959077,1775556632019,-954.40455964,0.00012539,2]
[419959078,1775556632029,-1700.68294405,0.00012666,2]
[419959079,1775556632039,-599.0,0.00012666,2]
[419959080,1775556632049,-901.0,0.00012995,2]
[419959081,1775556632059,-500.0,0.00013462,2]
[419959082,1775556632069,-300.0,0.00013698,2]
[419959083,1775556632079,-44.91249631,0.00013699,2]
[419959116,1775556638422,-684.23268755,0.00013699,2]
[419959123,1775556638479,-270.85481614,0.00013699,2]
[419959125,1775556638489,-300.0,0.00013832,2]
[419959127,1775556638499,-300.0,0.00013832,2]
[419959129,1775556638509,-300.0,0.00013832,2]
[419959131,1775556638519,-300.0,0.00013832,2]
[419959133,1775556638529,-300.0,0.00013832,2]
[419959135,1775556638539,-300.0,0.00013832,2]
[419959137,1775556638550,-300.0,0.00013832,2]
[419959139,1775556638559,-300.0,0.00013832,2]
[419959141,1775556638570,-300.0,0.00013832,2]
[419959143,1775556638580,-300.0,0.00013832,2]
[419959144,1775556638589,-300.0,0.00013832,2]
[419959146,1775556638599,-300.0,0.00013832,2]
[419959149,1775556638609,-300.0,0.00013832,2]
[419959150,1775556638618,-300.0,0.00013832,2]
[419959152,1775556638628,-300.0,0.00013832,2]
[419959153,1775556638638,-600.0,0.00014108,2]
[419959154,1775556638647,-720.0,0.00015518,2]
[419959155,1775556638657,-864.0,0.0001707,2]
[419959156,1775556638666,-217.943157,0.00018288,2]
[419959157,1775556638676,-165.626586,0.00018532,2]
[419959158,1775556638686,-558.1219412,0.00018583,2]
[419959159,1775556638695,-509.0,0.00018587,2]
[419959160,1775556638706,-1000.0,0.00018777,2]
[419959161,1775556638716,-154.14977173,0.00018787,2]
[419959162,1775556638725,-500.0,0.00018976,2]
[419959163,1775556638735,-352.5244818,0.00018976,2]
[419959164,1775556638744,-250.0,0.00018986,6]
[419959165,1775556638754,-938.83705527,0.00019338,2]
[419959166,1775556638763,-3751.59287285,0.00019338,2]
[419959167,1775556638772,-414.84087431,0.00019338,2]
[419959168,1775556638782,-1657.70413376,0.00019338,2]
[419959169,1775556638791,-204.2061803,0.00019794,2]
[419959170,1775556638801,-500.0,0.00019986,2]
[419959171,1775556638810,-500.0,0.00019986,2]
[419959172,1775556638819,-500.0,0.00019986,2]
[419959173,1775556638828,-500.0,0.00019986,2]
[419959174,1775556638837,-500.0,0.00019986,2]
[419959175,1775556638846,-476.773246,0.00019986,2]
[419959176,1775556638856,-171.53,0.0002,2]
[419959177,1775556638866,-189.25,0.0002,2]
[419959178,1775556638876,-1500.0,0.0002,2]
[419959179,1775556638886,-1030.0,0.0002,2]
[419959180,1775556638896,-502.83877062,0.0002,2]
[419959181,1775556638906,-2059.98,0.00020103,2]
[419959182,1775556638916,-151.0,0.0002026,2]
[419959183,1775556638925,-151.84161305,0.0002026,2]
[419959184,1775556638935,-151.0,0.0002026,2]
[419959185,1775556638945,-151.0,0.0002026,2]
[419959186,1775556638956,-151.0,0.0002026,2]
[419959187,1775556638965,-151.0,0.0002026,2]
[419959188,1775556638974,-151.0,0.0002026,2]
[419959189,1775556638985,-151.0,0.0002026,2]
[419959190,1775556638994,-151.0,0.0002026,2]
[419959191,1775556639004,-151.0,0.0002026,2]
[419959192,1775556639013,-537.6845,0.0002026,2]
[419959193,1775556639023,-151.0,0.0002026,2]
[419959194,1775556639032,-151.0,0.0002026,2]
[419959195,1775556639041,-156.587,0.0002026,2]
[419959196,1775556639051,-2150.738,0.0002026,2]
[419959197,1775556639060,-537.6845,0.0002026,2]
[419959198,1775556639070,-500.0,0.00020278,2]
[419959199,1775556639080,-557.5788265,0.00020315,2]
[419959200,1775556639089,-1406.0,0.00020337,2]
[419959201,1775556639098,-647.385,0.00020337,2]
[419959202,1775556639108,-279.824,0.00020337,2]
[419959203,1775556639117,-449.961,0.00020337,2]
[419959204,1775556639127,-578.20924308,0.0002037,2]
[419959205,1775556639136,-201.67508031,0.0002038,2]
[419959206,1775556639145,-599.60298507,0.00020425,2]
[419959207,1775556639155,-437.3345796,0.00020426,2]
[419959208,1775556639164,-500.0,0.00020426,2]
[419959209,1775556639174,-500.0,0.00020426,2]
[419959210,1775556639184,-259.16581105,0.00020426,2]
[419959211,1775556639193,-623.02417783,0.00020426,2]
[419959212,1775556639203,-210.12190176,0.00020427,2]
[419959213,1775556639213,-722.05138477,0.00020427,2]
[419959214,1775556639222,-266.86210443,0.00020427,2]
[419959215,1775556639232,-500.0,0.00020427,2]
[419959216,1775556639242,-500.0,0.00020427,2]
[419959217,1775556639251,-722.05138477,0.00020427,2]
[419959218,1775556639261,-722.05138477,0.00020427,2]
[419959219,1775556639271,-722.05138477,0.00020427,2]
[419959220,1775556639280,-722.05138477,0.00020427,2]
[419959221,1775556639289,-500.0,0.00020427,2]
[419959222,1775556639299,-722.05138477,0.00020427,2]
[419959223,1775556639309,-722.05138477,0.00020427,2]
[419959224,1775556639318,-500.0,0.00020427,2]
[419959225,1775556639327,-722.05138477,0.00020427,2]
[419959226,1775556639336,-500.0,0.00020427,2]
[419959227,1775556639346,-722.05138477,0.00020427,2]
[419959228,1775556639355,-500.0,0.00020427,2]
[419959229,1775556639365,-600.0,0.00020427,2]
[419959230,1775556639375,-722.05138477,0.00020427,2]
[419959231,1775556639384,-500.0,0.00020427,2]
[419959232,1775556639393,-722.05138477,0.00020427,2]
[419959233,1775556639402,-722.05138477,0.00020427,2]
[419959234,1775556639411,-500.0,0.00020427,2]
[419959235,1775556639421,-722.05138477,0.00020427,2]
[419959236,1775556639430,-722.05138477,0.00020427,2]
[419959237,1775556639439,-722.05138477,0.00020427,2]
[419959238,1775556639449,-722.05138477,0.00020427,2]
[419959239,1775556639458,-500.0,0.00020427,2]
[419959240,1775556639467,-1658.58504764,0.00020427,2]
[419959249,1775556640169,-541.29017889,0.00020427,2]
[419959251,1775556640178,-2199.87522653,0.00020427,2]
[419959253,1775556640187,-500.0,0.00020427,2]
[419959255,1775556640198,-2199.87522653,0.00020427,2]
[419959257,1775556640207,-2199.87522653,0.00020427,2]
[419959259,1775556640217,-2199.87522653,0.00020427,2]
[419959261,1775556640226,-500.0,0.00020427,2]
[419959263,1775556640235,-406.83870126,0.00020427,2]
[419959265,1775556640245,-2199.87522653,0.00020427,2]
[419959267,1775556640254,-2199.87522653,0.00020427,2]
[419959269,1775556640264,-2199.87522653,0.00020427,2]
[419959271,1775556640274,-2199.87522653,0.00020427,2]
[419959273,1775556640283,-152.07,0.00020428,2]
[419959275,1775556640292,-200.0,0.00020428,2]
[419959276,1775556640302,-10476.03940693,0.00020428,2]
[419959354,1775556646500,-5000.0,0.00020223,2]
[419959355,1775556646509,-8876.56779888,0.00020428,2]
[419959375,1775556649621,-3637.62085546,0.00020428,2]
[419959437,1775557753097,2067.49,0.0001001,2]
[419959445,1775557832732,-4929.57268169,0.00012895,2]
[419959446,1775557832744,-70.42731831,0.00012895,2]
[419959447,1775557832754,-300.0,0.00013025,2]
[419959448,1775557832763,-605.0,0.00013026,2]
[419959449,1775557832774,-1000.0,0.00013699,2]
[419959450,1775557832783,-420.0,0.00014284,2]
[419959451,1775557832792,-660.3559197,0.00018732,2]
[419959452,1775557832803,-175.317435,0.00019122,2]
[419959453,1775557832812,-450.58,0.00019183,2]
[419959454,1775557832822,-500.0,0.00019283,2]
[419959455,1775557832831,-163.0743128,0.00019556,2]
[419959456,1775557832841,-390.17172966,0.00019719,2]
[419959475,1775557838495,-1401.49439786,0.00019719,2]
[419959770,1775557841826,-359.07187248,0.00019719,2]
[419959772,1775557841836,-537.6845,0.00019719,2]
[419959774,1775557841846,-557.5788265,0.00019774,2]
[419959776,1775557841857,-578.20924308,0.00019829,2]
[419959778,1775557841867,-599.60298507,0.00019884,2]
[419959780,1775557841876,-621.78829552,0.00019939,2]
[419959782,1775557841886,-638.57619456,0.00019994,2]
[419959915,1775557843644,-6.2182679,0.00019994,2]
[419959916,1775557843654,-231.95,0.0002,2]
[419959917,1775557843664,-1468.64,0.0002,2]
[419959918,1775557843673,-541.0,0.0002,2]
[419959919,1775557843683,-2030.0,0.00020021,2]
[419959920,1775557843692,-668.65185757,0.00020049,2]
[419959921,1775557843702,-693.3919763,0.00020104,2]
[419959922,1775557843712,-583.94504879,0.00020159,2]
[419959923,1775557843725,-135.10243063,0.00020159,2]
[419959924,1775557843735,-745.65223616,0.00020214,2]
[419959926,1775557843745,-160.81545572,0.00020225,2]
[419959927,1775557843755,-500.0,0.00020225,2]
[419959928,1775557843765,-186.8034731,0.00020225,2]
[419959929,1775557843774,-12580.3099228,0.00020226,2]
[419960215,1775557846785,-1874.65562877,0.00019794,2]
[419961198,1775557900361,-1000.0,0.00013599,2]
[419961262,1775559032528,-3353.06740241,0.00011956,2]
[419961263,1775559032578,-1646.93259759,0.00011956,2]
[419961264,1775559032589,-3353.06740241,0.00012077,2]
[419961305,1775559038752,-1646.93259759,0.00012077,2]
[419961306,1775559038762,-428.07738275,0.00012199,2]
[419961315,1775559038859,-4408.3464135,0.00012199,2]
[419961317,1775559038869,-300.0,0.00012298,2]
[419961319,1775559038879,-300.0,0.00012298,2]
[419961321,1775559038890,-300.0,0.00012298,2]
[419961322,1775559038899,-300.0,0.00012298,2]
[419961324,1775559038909,-420.0,0.00013496,2]
[419961326,1775559038919,-614.0,0.00013599,2]
[419961328,1775559038930,-156.0,0.00013699,2]
[419961330,1775559038940,-1000.0,0.00013699,2]
[419961332,1775559038950,-587.0,0.00014812,2]
[419961334,1775559038960,-250.19743157,0.00015338,2]
[419961336,1775559038970,-823.0,0.00016255,2]
[419961338,1775559038981,-1152.0,0.00017839,2]
[419961339,1775559038991,-214.369866,0.00018822,2]
[419961341,1775559039002,-181.08010152,0.00018972,2]
[419961343,1775559039012,-500.0,0.00018972,2]
[419961345,1775559039022,-537.6845,0.00018972,2]
[419961347,1775559039032,-1919.27426849,0.00018972,2]
[419961478,1775559042811,-231.46373151,0.00018972,2]
[419961479,1775559042821,-204.67,0.00019001,2]
[419961480,1775559042831,-557.5788265,0.00019027,2]
[419961481,1775559042841,-578.20924308,0.00019082,2]
[419961482,1775559042852,-234.38624818,0.00019137,2]
[419961486,1775559043670,-365.21673689,0.00019137,2]
[419961487,1775559043680,-220.53692745,0.00019192,2]
[419961737,1775559046877,-401.25136807,0.00019192,2]
[419961739,1775559046887,-527.42634215,0.00019247,2]
[419961743,1775559046932,-117.36812031,0.00019247,2]
[419961745,1775559046943,-668.65185757,0.00019302,2]
[419961747,1775559046953,-291.31478917,0.00019357,2]
[419961752,1775559046989,-495.31916603,0.00019357,2]
[419961754,1775559046999,-856.7439219,0.0001951,2]
[419961756,1775559047009,-1989.33681671,0.0001952,2]
[419961758,1775559047019,-232.27195117,0.00019549,3]
[419961759,1775559047028,-598.10356958,0.00019594,2]
[419961760,1775559047039,-156.587,0.00019594,2]
[419961761,1775559047048,-15451.112198,0.00019606,2]
[419961762,1775559047058,-1102.14637711,0.00019655,2]
[419961763,1775559047068,-1102.14637711,0.00019655,2]
[419961764,1775559047078,-500.0,0.00019655,2]
[419961765,1775559047088,-323.98279241,0.00019655,2]
[419961766,1775559047098,-500.0,0.00019655,2]
[419961767,1775559047108,-500.0,0.00019655,2]
[419961768,1775559047117,-500.0,0.00019655,2]
[419961769,1775559047127,-1102.14637711,0.00019655,2]
[419961770,1775559047136,-500.0,0.00019655,2]
[419961771,1775559047146,-1102.14637711,0.00019655,2]
[419961772,1775559047155,-1102.14637711,0.00019655,2]
[419961773,1775559047165,-500.0,0.00019655,2]
[419961774,1775559047174,-1102.14637711,0.00019655,2]
[419961775,1775559047183,-525.24185806,0.00019655,2]
[419961777,1775559047192,-1102.14637711,0.00019655,2]
[419961778,1775559047201,-1102.14637711,0.00019655,2]
[419961779,1775559047211,-500.0,0.00019655,2]
[419961780,1775559047220,-461.09573224,0.00019655,2]
[419961781,1775559047229,-1102.14637711,0.00019655,2]
[419961783,1775559047238,-500.0,0.00019655,2]
[419961784,1775559047248,-500.0,0.00019655,2]
[419961785,1775559047257,-500.0,0.00019655,2]
[419961786,1775559047266,-500.0,0.00019655,2]
[419961788,1775559047275,-303.62432251,0.00019655,2]
[419961790,1775559047284,-1102.14637711,0.00019655,2]
[419961791,1775559047293,-500.0,0.00019655,2]
[419961793,1775559047302,-1102.14637711,0.00019655,2]
[419961794,1775559047311,-360.32905132,0.00019655,2]
[419961795,1775559047321,-500.0,0.00019655,2]
[419961796,1775559047331,-500.0,0.00019655,2]
[419961797,1775559047340,-500.0,0.00019655,2]
[419961798,1775559047350,-500.0,0.00019655,2]
[419961799,1775559047359,-500.0,0.00019655,2]
[419961800,1775559047368,-1102.14637711,0.00019655,2]
[419961801,1775559047377,-500.0,0.00019655,2]
[419961802,1775559047387,-1102.14637711,0.00019655,2]
[419961803,1775559047397,-1102.14637711,0.00019655,2]
[419961804,1775559047406,-1102.14637711,0.00019655,2]
[419961805,1775559047416,-500.0,0.00019655,2]
[419961806,1775559047425,-500.0,0.00019655,2]
[419961807,1775559047434,-500.0,0.00019655,2]
[419961808,1775559047444,-500.0,0.00019655,2]
[419961809,1775559047454,-1102.14637711,0.00019655,2]
[419961810,1775559047464,-1102.14637711,0.00019655,2]
[419961811,1775559047474,-12846.01242474,0.00019656,2]
[419961865,1775560228893,225.99783,0.0001001,2]
[419961873,1775560232593,-1985.535323,0.00012375,2]
[419961874,1775560232605,-2615.906,0.00012375,2]
[419961875,1775560232616,-341.005,0.00012375,2]
[419961918,1775560243840,-57.553677,0.00012375,2]
[419961919,1775560243858,-952.35903868,0.000125,2]
[419961920,1775560243874,-444.08728432,0.00013699,2]
[419961921,1775560243893,-555.91271568,0.00013699,2]
[419961922,1775560243905,-212.0,0.0001681,2]
[419961923,1775560243916,-500.54196291,0.00016811,2]
[419961924,1775560243927,-300.0,0.00016811,2]
[419961925,1775560243938,-4583.82338132,0.00016812,2]
[419961941,1775560247032,-10796.55021868,0.00016812,2]
[419961942,1775560247042,-300.0,0.00017147,2]
[419961944,1775560247051,-300.0,0.00017147,2]
[419961945,1775560247061,-300.0,0.00017147,2]
[419961947,1775560247072,-300.0,0.00017147,2]
[419961949,1775560247081,-300.0,0.00017147,2]
[419961950,1775560247091,-300.0,0.00017147,2]
[419961951,1775560247100,-300.0,0.00017147,2]
[419961952,1775560247110,-300.0,0.00017147,2]
[419961953,1775560247118,-160.24740586,0.00017147,2]
[419962208,1775561432486,-997.32222237,0.00011526,2]
[419962209,1775561432499,-4002.67777763,0.00011526,2]
[419962210,1775561432510,-300.0,0.00011999,2]
[419962211,1775561432520,-200.0,0.00012339,2]
[419962212,1775561432531,-200.0,0.00012339,7]
[419962213,1775561432541,-500.0,0.00012973,2]
[419962214,1775561432551,-300.0,0.00012997,2]
[419962215,1775561432561,-989.0,0.00012997,2]
[419962216,1775561432571,-500.0,0.00012998,2]
[419962217,1775561432581,-500.0,0.00012998,2]
[419962218,1775561432591,-183.3600597,0.00012998,2]
[419962219,1775561432602,-399.28403805,0.00012998,2]
[419962220,1775561432612,-500.0,0.00012998,2]
[419962221,1775561432622,-255.36278399,0.00012998,2]
[419962222,1775561432632,-409.36452023,0.00012999,2]
[419962223,1775561432642,-500.0,0.00012999,2]
[419962224,1775561432652,-300.67286898,0.00012999,2]
[419962225,1775561432665,-395.6799998,0.00012999,2]
[419962226,1775561432678,-575.24567574,0.00012999,2]
[419962227,1775561432688,-77.45433926,0.00012999,2]
[419962228,1775561432700,-422.54566074,0.00012999,2]
[419962229,1775561432709,-655.54350068,0.00012999,2]
[419962230,1775561432721,-616.05504384,0.00012999,2]
[419962231,1775561432730,-500.0,0.00012999,2]
[419962233,1775561432740,-293.61192597,0.00012999,2]
[419962234,1775561432752,-977.98661855,0.00012999,2]
[419962235,1775561432762,-1271.59854452,0.00012999,2]
[419962236,1775561432772,-500.0,0.00012999,2]
[419962237,1775561432781,-1271.59854452,0.00012999,2]
[419962238,1775561432791,-500.0,0.00012999,2]
[419962239,1775561432800,-1271.59854452,0.00012999,2]
[419962240,1775561432809,-500.0,0.00012999,2]
[419962241,1775561432818,-29.23470889,0.00012999,2]
[419962242,1775561432830,-276.36,0.00012999,2]
[419962255,1775561437963,-966.00383563,0.00012999,2]
[419962256,1775561437973,-464.56040681,0.00012999,2]
[419962257,1775561437983,-1271.59854452,0.00012999,2]
[419962258,1775561437993,-500.0,0.00012999,2]
[419962259,1775561438003,-1271.59854452,0.00012999,2]
[419962260,1775561438013,-500.0,0.00012999,2]
[419962261,1775561438022,-1271.59854452,0.00012999,2]
[419962262,1775561438032,-500.0,0.00012999,2]
[419962263,1775561438043,-1271.59854452,0.00012999,2]
[419962264,1775561438054,-1271.59854452,0.00012999,2]
[419962265,1775561438064,-500.0,0.00012999,2]
[419962266,1775561438074,-1271.59854452,0.00012999,2]
[419962267,1775561438083,-1271.59854452,0.00012999,2]
[419962268,1775561438093,-500.0,0.00012999,2]
[419962269,1775561438103,-1271.59854452,0.00012999,2]
[419962270,1775561438113,-1271.59854452,0.00012999,2]
[419962271,1775561438123,-500.0,0.00012999,2]
[419962272,1775561438132,-1271.59854452,0.00012999,2]
[419962273,1775561438142,-500.0,0.00012999,2]
[419962274,1775561438152,-1271.59854452,0.00012999,2]
[419962275,1775561438162,-500.0,0.00012999,2]
[419962276,1775561438171,-1271.59854452,0.00012999,2]
[419962277,1775561438181,-500.0,0.00012999,2]
[419962278,1775561438191,-1271.59854452,0.00012999,2]
[419962279,1775561438206,-1271.59854452,0.00012999,2]
[419962280,1775561438216,-1271.59854452,0.00012999,2]
[419962281,1775561438226,-500.0,0.00012999,2]
[419962282,1775561438236,-1271.59854452,0.00012999,2]
[419962283,1775561438574,-1271.59854452,0.00012999,2]
[419962284,1775561438585,-1271.59854452,0.00012999,2]
[419962285,1775561438595,-1271.59854452,0.00012999,2]
[419962286,1775561438607,-1271.59854452,0.00012999,2]
[419962287,1775561438617,-1271.59854452,0.00012999,2]
[419962288,1775561438627,-1271.59854452,0.00012999,2]
[419962289,1775561438637,-1271.59854452,0.00012999,2]
[419962290,1775561438648,-500.0,0.00012999,2]
[419962291,1775561438659,-600.0,0.00012999,2]
[419962292,1775561438670,-1525.91825344,0.00012999,2]
[419962293,1775561438681,-1525.91825344,0.00012999,2]